lending/lending_fUSD_20250501
["ID","MTS","AMOUNT","RATE_DAILY","PERIOD"]
[359565029,1746125469272,-1105.059235,0.00036164,7]
[359565030,1746125469281,-3382.25,0.00036164,11]
[359565031,1746125469290,-450.0,0.00036164,11]
[359565032,1746125469299,-450.0,0.00036164,11]
[359565033,1746125469308,-1270.35,0.00036164,11]
[359565034,1746125469318,-450.0,0.00036164,11]
[359565035,1746125469327,-1105.059235,0.00036164,7]
[359565036,1746125469337,-450.0,0.00036164,11]
[359565037,1746125469349,-1105.059235,0.00036164,7]
[359565038,1746125469359,-450.0,0.00036164,11]
[359565039,1746125469369,-264.37769715,0.00036164,11]
[359565040,1746125469378,-176.160833,0.00036164,7]
[359565041,1746125469388,-176.160833,0.00036164,7]
[359565042,1746125469398,-450.0,0.00036164,11]
[359565043,1746125469407,-450.0,0.00036164,11]
[359565044,1746125469417,-1560.94,0.00036164,11]
[359565045,1746125469426,-887.27,0.00036164,11]
[359565046,1746125469436,-450.0,0.00036164,11]
[359565047,1746125469445,-450.0,0.00036164,11]
[359565048,1746125469454,-1117.31,0.00036164,11]
[359565049,1746125469465,-450.0,0.00036164,11]
[359565050,1746125469475,-450.0,0.00036164,11]
[359565051,1746125469484,-302.62268337,0.00036164,11]
[359565052,1746125469493,-176.160833,0.00036164,7]
[359565053,1746125469502,-578.54,0.00036164,11]
[359565054,1746125469512,-176.160833,0.00036164,7]
[359565055,1746125469522,-450.0,0.00036164,11]
[359565056,1746125469532,-255.92383648,0.00036164,11]
[359565057,1746125469541,-1075.67,0.00036164,11]
[359565058,1746125469550,-993.97,0.00036164,11]
[359565059,1746125469560,-575.45,0.00036164,11]
[359565060,1746125469569,-450.0,0.00036164,11]
[359565061,1746125469578,-1326.69,0.00036164,11]
[359565062,1746125469588,-484.6,0.00036164,11]
[359565063,1746125469597,-596.2,0.00036164,11]
[359565064,1746125469607,-549.07,0.00036164,11]
[359565065,1746125469616,-331.9,0.00036164,11]
[359565066,1746125469626,-563.47,0.00036164,11]
[359565067,1746125469635,-450.0,0.00036164,11]
[359565068,1746125469647,-503.57,0.00036164,11]
[359565069,1746125469658,-450.0,0.00036164,11]
[359565070,1746125469667,-591.92,0.00036164,11]
[359565071,1746125469677,-450.0,0.00036164,11]
[359565072,1746125469687,-450.0,0.00036164,11]
[359565073,1746125469697,-576.04815169,0.00036164,11]
[359565074,1746125469706,-894.99,0.00036164,11]
[359565075,1746125469715,-2136.31,0.00036164,8]
[359565076,1746125469725,-645.63,0.00036164,11]
[359565077,1746125469736,-450.0,0.00036164,11]
[359565078,1746125469746,-1645.26,0.00036164,11]
[359565079,1746125469756,-450.0,0.00036164,11]
[359565080,1746125469765,-499.36,0.00036164,11]
[359565081,1746125469775,-450.0,0.00036164,11]
[359565082,1746125469784,-2089.82,0.00036164,11]
[359565083,1746125469793,-450.0,0.00036164,11]
[359565084,1746125469803,-1431.97,0.00036164,11]
[359565085,1746125469812,-385.29291765,0.00036164,11]
[359565086,1746125469822,-656.25,0.00036164,11]
[359565087,1746125469831,-450.0,0.00036164,11]
[359565088,1746125469841,-863.89,0.00036164,11]
[359565089,1746125469850,-652.66,0.00036164,11]
[359565090,1746125469859,-754.65,0.00036164,11]
[359565091,1746125469869,-450.0,0.00036164,11]
[359565092,1746125469879,-450.0,0.00036164,11]
[359565093,1746125469888,-450.0,0.00036164,11]
[359565094,1746125469900,-1103.4,0.00036164,11]
[359565095,1746125469911,-896.59,0.00036164,11]
[359565096,1746125469920,-9755.04,0.00036164,11]
[359565097,1746125469931,-450.0,0.00036164,11]
[359565098,1746125469941,-450.0,0.00036164,11]
[359565099,1746125469950,-1032.71,0.00036164,11]
[359565100,1746125469960,-1150.52,0.00036164,120]
[359565101,1746125469969,-450.0,0.00036164,11]
[359565102,1746125469980,-1363.71,0.00036164,11]
[359565103,1746125469990,-450.0,0.00036164,11]
[359565104,1746125469999,-450.0,0.00036164,11]
[359565105,1746125470009,-450.0,0.00036164,11]
[359565106,1746125470018,-1047.96,0.00036164,11]
[359565107,1746125470028,-778.78,0.00036164,11]
[359565108,1746125470038,-450.0,0.00036164,11]
[359565109,1746125470047,-450.0,0.00036164,11]
[359565110,1746125470057,-450.0,0.00036164,11]
[359565111,1746125470066,-450.0,0.00036164,11]
[359565112,1746125470076,-173.58942568,0.00036164,11]
[359565113,1746125470085,-703.7,0.00036164,11]
[359565114,1746125470095,-450.0,0.00036164,11]
[359565115,1746125470104,-1541.59,0.00036164,11]
[359565116,1746125470113,-1045.87,0.00036164,11]
[359565117,1746125470122,-647.29,0.00036164,11]
[359565118,1746125470134,-450.0,0.00036164,11]
[359565119,1746125470144,-271.6055193,0.00036164,11]
[359565120,1746125470154,-450.0,0.00036164,11]
[359565121,1746125470166,-450.0,0.00036164,11]
[359565122,1746125470174,-1118.18,0.00036164,11]
[359565123,1746125470184,-450.0,0.00036164,11]
[359565124,1746125470193,-450.0,0.00036164,11]
[359565125,1746125470203,-450.0,0.00036164,11]
[359565126,1746125470212,-972.39,0.00036164,11]
[359565127,1746125470223,-598.6,0.00036164,11]
[359565128,1746125470233,-871.54,0.00036164,11]
[359565129,1746125470242,-2172.07,0.00036164,11]
[359565130,1746125470252,-450.0,0.00036164,11]
[359565131,1746125470261,-160.18747908,0.00036164,11]
[359565132,1746125470271,-483.91,0.00036164,11]
[359565133,1746125470280,-1164.68,0.00036164,11]
[359565134,1746125470289,-605.5,0.00036164,11]
[359565135,1746125470298,-450.0,0.00036164,11]
[359565136,1746125470307,-1122.64,0.00036164,11]
[359565137,1746125470317,-2502.34,0.00036164,11]
[359565138,1746125470325,-1095.24,0.00036164,11]
[359565139,1746125470335,-450.0,0.00036164,7]
[359565140,1746125470344,-832.38,0.00036164,11]
[359565141,1746125470353,-450.0,0.00036164,11]
[359565142,1746125470362,-1189.48,0.00036164,11]
[359565143,1746125470371,-1761.77,0.00036164,11]
[359565144,1746125470380,-450.0,0.00036164,11]
[359565145,1746125470389,-202.3266493,0.00036164,11]
[359565146,1746125470398,-450.0,0.00036164,11]
[359565147,1746125470407,-529.06,0.00036164,11]
[359565148,1746125470416,-1110.23,0.00036164,11]
[359565149,1746125470425,-450.0,0.00036164,11]
[359565150,1746125470434,-450.0,0.00036164,11]
[359565151,1746125470444,-410.54364671,0.00036164,11]
[359565152,1746125470453,-497.5,0.00036164,11]
[359565153,1746125470463,-211.97149221,0.00036164,11]
[359565154,1746125470472,-1318.71,0.00036164,11]
[359565155,1746125470481,-1038.36,0.00036164,11]
[359565156,1746125470491,-522.94,0.00036164,11]
[359565157,1746125470500,-782.48,0.00036164,11]
[359565158,1746125470509,-450.0,0.00036164,11]
[359565159,1746125470519,-151.0,0.00036164,7]
[359565160,1746125470528,-151.0,0.00036164,7]
[359565161,1746125470537,-1375.85,0.00036164,11]
[359565162,1746125470547,-450.0,0.00036164,11]
[359565163,1746125470723,-450.0,0.00036164,11]
[359565164,1746125470732,-468.72,0.00036164,11]
[359565165,1746125470742,-450.0,0.00036164,11]
[359565166,1746125470751,-479.82,0.00036164,11]
[359565167,1746125470760,-959.69,0.00036164,11]
[359565168,1746125470770,-450.0,0.00036164,11]
[359565169,1746125470780,-450.0,0.00036164,11]
[359565170,1746125470790,-740.64,0.00036164,11]
[359565171,1746125470799,-16881.82,0.00036164,11]
[359565172,1746125470809,-450.0,0.00036164,11]
[359565173,1746125470818,-151.0,0.00036164,7]
[359565174,1746125470827,-151.0,0.00036164,7]
[359565175,1746125470837,-2913.59,0.00036164,11]
[359565176,1746125470847,-450.0,0.00036164,11]
[359565177,1746125470856,-324.41825783,0.00036164,11]
[359565178,1746125470875,-450.0,0.00036164,11]
[359565179,1746125470887,-6631.16,0.00036164,11]
[359565180,1746125470898,-2202.67,0.00036164,11]
[359565181,1746125470908,-614.39,0.00036164,11]
[359565182,1746125470917,-450.0,0.00036164,11]
[359565183,1746125470928,-675.33,0.00036164,11]
[359565184,1746125470938,-2272.79,0.00036164,11]
[359565185,1746125470948,-628.52,0.00036164,11]
[359565186,1746125470958,-450.0,0.00036164,11]
[359565187,1746125470968,-450.0,0.00036164,11]
[359565188,1746125470977,-2370.49,0.00036164,11]
[359565189,1746125470987,-450.0,0.00036164,11]
[359565190,1746125470999,-450.0,0.00036164,11]
[359565191,1746125471010,-450.0,0.00036164,11]
[359565192,1746125471021,-928.83,0.00036164,11]
[359565193,1746125471031,-1326.68,0.00036164,11]
[359565194,1746125471041,-486.27,0.00036164,11]
[359565195,1746125471051,-1138.77,0.00036164,11]
[359565196,1746125471061,-699.88,0.00036164,11]
[359565197,1746125471071,-925.15,0.00036164,11]
[359565198,1746125471080,-450.0,0.00036164,11]
[359565199,1746125471092,-450.0,0.00036164,11]
[359565200,1746125471102,-450.0,0.00036164,7]
[359565201,1746125471111,-450.0,0.00036164,11]
[359565202,1746125471122,-1903.06,0.00036164,11]
[359565203,1746125471133,-450.0,0.00036164,11]
[359565204,1746125471143,-151.0,0.00036164,7]
[359565205,1746125471153,-1228.77,0.00036164,11]
[359565206,1746125471163,-790.93,0.00036164,11]
[359565207,1746125471174,-3386.69,0.00036164,11]
[359565208,1746125471184,-151.0,0.00036164,7]
[359565209,1746125471193,-450.0,0.00036164,11]
[359565210,1746125471202,-1353.1,0.00036164,11]
[359565211,1746125471212,-450.0,0.00036164,11]
[359565212,1746125471223,-879.24,0.00036164,11]
[359565213,1746125471233,-715.8,0.00036164,11]
[359565214,1746125471242,-973.1,0.00036164,11]
[359565215,1746125471252,-556.8,0.00036164,11]
[359565216,1746125471262,-11110.03,0.00036164,11]
[359565217,1746125471272,-1134.08,0.00036164,11]
[359565218,1746125471282,-450.0,0.00036164,11]
[359565219,1746125471291,-450.0,0.00036164,11]
[359565220,1746125471301,-450.0,0.00036164,11]
[359565221,1746125471311,-450.0,0.00036164,11]
[359565222,1746125471322,-450.0,0.00036164,11]
[359565223,1746125471332,-3724.28,0.00036164,11]
[359565224,1746125471341,-1237.78,0.00036164,11]
[359565225,1746125471351,-847.76,0.00036164,11]
[359565226,1746125471361,-450.0,0.00036164,11]
[359565227,1746125471370,-450.0,0.00036164,11]
[359565228,1746125471380,-1223.04,0.00036164,11]
[359565229,1746125471390,-450.0,0.00036164,11]
[359565230,1746125471399,-470.24,0.00036164,11]
[359565231,1746125471409,-450.0,0.00036164,11]
[359565232,1746125471419,-450.0,0.00036164,11]
[359565233,1746125471428,-706.06,0.00036164,11]
[359565234,1746125471438,-623.29,0.00036164,11]
[359565235,1746125471447,-878.69,0.00036164,11]
[359565236,1746125471457,-1543.3,0.00036164,11]
[359565237,1746125471468,-1274.63,0.00036164,11]
[359565238,1746125471478,-607.06,0.00036164,11]
[359565239,1746125471489,-450.0,0.00036164,11]
[359565240,1746125471499,-450.0,0.00036164,11]
[359565241,1746125471509,-12461.77,0.00036164,11]
[359565242,1746125471520,-672.97,0.00036164,11]
[359565243,1746125471530,-21.91579956,0.00036164,11]
[359565244,1746125472190,-709.67282854,0.00035616,11]
[359565245,1746125472203,-203.52717146,0.00035616,11]
[359565246,1746125472213,-114.51754861,0.00036164,11]
[359565247,1746125472225,-962.65033312,0.00036164,11]
[359565248,1746125472269,-450.0,0.00035616,11]
[359565249,1746125472279,-913.2,0.0003589,11]
[359565250,1746125472288,-263.96631871,0.00036164,11]
[359565251,1746125472298,-750.68,0.00036164,11]
[359565252,1746125472308,-450.0,0.00036164,11]
[359565253,1746125472318,-450.0,0.00036164,11]
[359565254,1746125472328,-982.2,0.00036164,11]
[359565255,1746125472337,-631.52,0.00036164,11]
[359565256,1746125472346,-1367.1,0.00036164,11]
[359565257,1746125472355,-450.0,0.00036164,11]
[359565258,1746125472365,-1939.03,0.00036164,11]
[359565259,1746125472374,-1000.0,0.00036164,60]
[359565260,1746125472384,-450.0,0.00036164,11]
[359565261,1746125472394,-681.02,0.00036164,11]
[359565262,1746125472403,-458.97629121,0.00036164,11]
[359565263,1746125472412,-11812.4,0.00036164,11]
[359565264,1746125472422,-450.0,0.00036164,11]
[359565265,1746125472431,-631.64,0.00036164,11]
[359565266,1746125472440,-1524.63,0.00036164,11]
[359565267,1746125472450,-1738.86,0.00036164,11]
[359565268,1746125472459,-450.0,0.00036164,11]
[359565269,1746125472468,-450.0,0.00036164,11]
[359565270,1746125472479,-450.0,0.00036164,11]
[359565271,1746125472488,-450.0,0.00036164,11]
[359565272,1746125472498,-450.0,0.00036164,3]
[359565273,1746125472507,-587.43,0.00036164,11]
[359565274,1746125472517,-2000.0,0.00036164,11]
[359565275,1746125472526,-450.0,0.00036164,11]
[359565276,1746125472535,-1607.08,0.00036164,11]
[359565277,1746125472546,-765.65,0.00036164,11]
[359565278,1746125472555,-450.0,0.00036164,11]
[359565279,1746125472564,-450.0,0.00036164,11]
[359565280,1746125472573,-450.0,0.00036164,11]
[359565281,1746125472582,-561.33,0.00036164,11]
[359565282,1746125472591,-566.77,0.00036164,11]
[359565283,1746125472603,-1077.28,0.00036164,11]
[359565284,1746125472613,-5330.09,0.00036164,11]
[359565285,1746125472622,-1057.13,0.00036164,11]
[359565286,1746125472631,-450.0,0.00036164,11]
[359565287,1746125472642,-884.63,0.00036164,11]
[359565288,1746125472655,-450.0,0.00036164,11]
[359565289,1746125472664,-450.0,0.00036164,11]
[359565290,1746125472869,-1252.14,0.00036164,11]
[359565291,1746125472879,-450.0,0.00036164,11]
[359565292,1746125472888,-961.58,0.00036164,11]
[359565293,1746125472898,-705.04,0.00036164,11]
[359565294,1746125472907,-450.0,0.00036164,11]
[359565295,1746125472916,-450.0,0.00036164,11]
[359565296,1746125472926,-450.0,0.00036164,11]
[359565297,1746125472935,-268.6975379,0.00036164,2]
[359565298,1746125472945,-450.0,0.00036164,11]
[359565299,1746125472954,-450.0,0.00036164,11]
[359565300,1746125472963,-562.88,0.00036164,11]
[359565301,1746125472973,-694.01,0.00036164,11]
[359565302,1746125472982,-1334.29,0.00036164,11]
[359565303,1746125472992,-500.0,0.00036164,120]
[359565304,1746125473002,-577.49,0.00036164,11]
[359565305,1746125473011,-450.0,0.00036164,11]
[359565306,1746125473022,-474.11,0.00036164,11]
[359565307,1746125473032,-845.09,0.00036164,11]
[359565308,1746125473041,-450.0,0.00036164,11]
[359565309,1746125473051,-806.67,0.00036164,11]
[359565310,1746125473061,-525.32,0.00036164,11]
[359565311,1746125473071,-468.82,0.00036164,11]
[359565312,1746125473080,-450.0,0.00036164,11]
[359565313,1746125473089,-450.0,0.00036164,11]
[359565314,1746125473099,-409.93817657,0.00036164,11]
[359565315,1746125473110,-459.43,0.00036164,11]
[359565316,1746125473120,-2421.09,0.00036164,11]
[359565317,1746125473129,-450.0,0.00036164,11]
[359565318,1746125473139,-450.0,0.00036164,11]
[359565319,1746125473149,-472.74,0.00036164,11]
[359565320,1746125473160,-4004.72,0.00036164,11]
[359565321,1746125473169,-1243.28,0.00036164,11]
[359565322,1746125473179,-450.0,0.00036164,11]
[359565323,1746125473188,-1112.48,0.00036164,11]
[359565324,1746125473200,-1636.56,0.00036164,11]
[359565325,1746125473209,-11877.27,0.00036164,11]
[359565326,1746125473220,-450.0,0.00036164,11]
[359565327,1746125473230,-450.0,0.00036164,11]
[359565328,1746125473240,-450.0,0.00036164,11]
[359565329,1746125473249,-450.0,0.00036164,11]
[359565330,1746125473258,-450.0,0.00036164,11]
[359565331,1746125473268,-450.0,0.00036164,11]
[359565332,1746125473279,-905.34,0.00036164,11]
[359565333,1746125473290,-450.0,0.00036164,11]
[359565334,1746125473301,-163839.56,0.00036164,11]
[359565335,1746125473311,-790.09,0.00036164,11]
[359565336,1746125473323,-450.0,0.00036164,11]
[359565337,1746125473333,-1867.52,0.00036164,11]
[359565338,1746125473342,-875.08,0.00036164,11]
[359565339,1746125473351,-340.52831965,0.00036164,11]
[359565340,1746125473361,-450.0,0.00036164,11]
[359565341,1746125473371,-450.0,0.00036164,11]
[359565342,1746125473381,-517.17,0.00036164,11]
[359565343,1746125473391,-459.68,0.00036164,11]
[359565344,1746125473400,-381.1084553,0.00036164,11]
[359565345,1746125473409,-450.0,0.00036164,11]
[359565346,1746125473420,-450.0,0.00036164,11]
[359565347,1746125473431,-450.0,0.00036164,11]
[359565348,1746125473441,-450.0,0.00036164,11]
[359565349,1746125473451,-450.0,0.00036164,11]
[359565350,1746125473461,-463.3,0.00036164,11]
[359565351,1746125473471,-1326.36,0.00036164,11]
[359565352,1746125473480,-937.07,0.00036164,11]
[359565353,1746125473490,-450.0,0.00036164,11]
[359565354,1746125473499,-521.30547429,0.00036164,11]
[359565355,1746125473509,-3404.96,0.00036164,11]
[359565356,1746125473519,-242.63509925,0.00036164,11]
[359565357,1746125473528,-450.0,0.00036164,11]
[359565358,1746125473537,-300.0,0.00036164,11]
[359565359,1746125473547,-572.01,0.00036164,11]
[359565360,1746125473556,-505.94,0.00036164,11]
[359565361,1746125473565,-13760.97,0.00036164,2]
[359565362,1746125473575,-10291.19,0.00036164,11]
[359565363,1746125473584,-450.0,0.00036164,11]
[359565364,1746125473593,-1132.04,0.00036164,11]
[359565365,1746125473603,-450.0,0.00036164,11]
[359565366,1746125473613,-761.13,0.00036164,11]
[359565367,1746125473623,-450.0,0.00036164,11]
[359565368,1746125473633,-1264.03,0.00036164,11]
[359565369,1746125473643,-452.82,0.00036164,11]
[359565370,1746125473655,-861.06,0.00036164,11]
[359565371,1746125473666,-2179.89,0.00036164,11]
[359565372,1746125473675,-584.46,0.00036164,11]
[359565373,1746125473685,-572.34,0.00036164,11]
[359565374,1746125473695,-450.0,0.00036164,11]
[359565375,1746125473705,-5766.87,0.00036164,11]
[359565376,1746125473714,-2197.55,0.00036164,11]
[359565377,1746125473724,-500.0,0.00036164,11]
[359565378,1746125473736,-450.0,0.00036164,11]
[359565379,1746125473747,-1030.72,0.00036164,11]
[359565380,1746125473756,-3910.87,0.00036164,11]
[359565381,1746125473765,-513.37,0.00036164,11]
[359565382,1746125473775,-450.0,0.00036164,11]
[359565383,1746125473784,-450.0,0.00036164,11]
[359565384,1746125473794,-450.0,0.00036164,11]
[359565385,1746125473803,-539.48,0.00036164,11]
[359565386,1746125473812,-1270.63,0.00036164,11]
[359565387,1746125473822,-838.18,0.00036164,11]
[359565388,1746125473831,-619.24,0.00036164,11]
[359565389,1746125473841,-181.3221706,0.00036164,11]
[359565390,1746125473850,-450.0,0.00036164,11]
[359565391,1746125473860,-450.0,0.00036164,11]
[359565392,1746125473874,-3632.63,0.00036164,11]
[359565393,1746125473883,-1292.16,0.00036164,11]
[359565394,1746125473892,-1123.83,0.00036164,11]
[359565395,1746125473901,-892.21,0.00036164,11]
[359565396,1746125473911,-568.85,0.00036164,11]
[359565397,1746125473922,-364.07967764,0.00036164,11]
[359565398,1746125473932,-1472.3,0.00036164,11]
[359565399,1746125473942,-5023.95,0.00036164,11]
[359565400,1746125473951,-450.0,0.00036164,11]
[359565401,1746125473961,-224.42143183,0.00036164,11]
[359565402,1746125473971,-450.0,0.00036164,11]
[359565403,1746125473980,-450.0,0.00036164,11]
[359565404,1746125473990,-704.81,0.00036164,11]
[359565405,1746125473999,-450.0,0.00036164,11]
[359565406,1746125474010,-1000.0,0.00036164,11]
[359565407,1746125474020,-450.0,0.00036164,11]
[359565408,1746125474043,-450.0,0.00036164,11]
[359565409,1746125474062,-681.22,0.00036164,11]
[359565410,1746125474082,-3970.47,0.00036164,11]
[359565411,1746125474101,-450.0,0.00036164,10]
[359565412,1746125474118,-1436.2,0.00036164,11]
[359565413,1746125474137,-450.0,0.00036164,11]
[359565414,1746125474157,-450.0,0.00036164,11]
[359565415,1746125474175,-883.76,0.00036164,11]
[359565416,1746125474194,-450.0,0.00036164,11]
[359565417,1746125474214,-1870.73,0.00036164,11]
[359565418,1746125474231,-450.0,0.00036164,11]
[359565419,1746125474244,-450.0,0.00036164,11]
[359565420,1746125474264,-1467.23,0.00036164,11]
[359565421,1746125474277,-450.0,0.00036164,11]
[359565422,1746125474295,-450.0,0.00036164,11]
[359565423,1746125474308,-560.51700713,0.00036164,11]
[359565424,1746125474325,-450.0,0.00036164,2]
[359565425,1746125474345,-450.0,0.00036164,11]
[359565426,1746125474360,-3891.6,0.00036164,11]
[359565427,1746125474376,-560.04909162,0.00036164,11]
[359565428,1746125474391,-1531.83,0.00036164,11]
[359565429,1746125474407,-450.0,0.00036164,11]
[359565430,1746125474422,-707.16,0.00036164,11]
[359565431,1746125474437,-788.46,0.00036164,11]
[359565432,1746125474452,-450.0,0.00036164,11]
[359565433,1746125474467,-450.0,0.00036164,11]
[359565434,1746125474483,-450.0,0.00036164,11]
[359565435,1746125474499,-450.0,0.00036164,11]
[359565436,1746125474513,-587.65,0.00036164,11]
[359565437,1746125474528,-126.98564751,0.00036164,11]
[359565438,1746125474549,-706.02435249,0.00036164,11]
[359565439,1746125474564,-174.97489838,0.00036164,11]
[359565440,1746125474582,-633.65510162,0.00036164,11]
[359565441,1746125474596,-1096.58,0.00036164,11]
[359565442,1746125474612,-513.46,0.00036164,11]
[359565443,1746125474626,-450.0,0.00036164,11]
[359565444,1746125474641,-450.0,0.00036164,11]
[359565445,1746125474660,-1087.87496536,0.00036164,2]
[359565446,1746125474675,-450.0,0.00036164,11]
[359565447,1746125474690,-574.17,0.00036164,11]
[359565448,1746125474706,-450.0,0.00036164,11]
[359565449,1746125474721,-1201.61,0.00036164,11]
[359565450,1746125474736,-450.0,0.00036164,11]
[359565451,1746125474752,-450.0,0.00036164,11]
[359565452,1746125474768,-1559.6,0.00036164,11]
[359565453,1746125474784,-450.0,0.00036164,11]
[359565454,1746125474798,-804.29,0.00036164,11]
[359565455,1746125474814,-450.0,0.00036164,11]
[359565456,1746125474829,-570.0,0.00036164,11]
[359565457,1746125474844,-205.67955083,0.00036164,11]
[359565458,1746125474860,-450.0,0.00036164,11]
[359565459,1746125474875,-895.16,0.00036164,11]
[359565460,1746125474891,-450.0,0.00036164,11]
[359565461,1746125474906,-486.66052297,0.00036164,11]
[359565462,1746125474921,-506.06,0.00036164,11]
[359565463,1746125474937,-450.0,0.00036164,11]
[359565464,1746125474953,-450.0,0.00036164,11]
[359565465,1746125474970,-450.0,0.00036164,11]
[359565466,1746125474986,-450.0,0.00036164,11]
[359565467,1746125475002,-3804.3,0.00036164,11]
[359565468,1746125475020,-1443.57,0.00036164,11]
[359565469,1746125475035,-247.04216546,0.00036164,11]
[359565470,1746125475051,-1802.41,0.00036164,11]
[359565471,1746125475066,-450.0,0.00036164,11]
[359565472,1746125475081,-450.0,0.00036164,11]
[359565473,1746125475096,-150.0,0.00036164,2]
[359565474,1746125475112,-200.0,0.00036242,120]
[359565475,1746125475129,-153.38,0.0003626,2]
[359565476,1746125475144,-231.99,0.0003628,4]
[359565477,1746125475160,-177.52336652,0.00036333,2]
[359565478,1746125475175,-878.0,0.00036367,2]
[359565479,1746125475191,-500.0,0.00036437,10]
[359565480,1746125475206,-500.0,0.00036437,10]
[359565481,1746125475221,-150.0,0.00036437,3]
[359565482,1746125475236,-150.0,0.00036437,3]
[359565483,1746125475251,-150.0,0.00036437,3]
[359565484,1746125475266,-20686.15372593,0.00036438,7]
[359565485,1746125475290,-282.77895959,0.00035616,11]
[359565486,1746125475301,-224.83745916,0.00035616,11]
[359565487,1746125475312,-72.29101794,0.00036438,7]
[359565488,1746125475324,-886.88,0.00036438,7]
[359565489,1746125475338,-3994.49655117,0.00036438,7]
[359565490,1746125476733,-665.159998,0.00035606,2]
[359565491,1746125476744,-892.0,0.00035606,2]
[359565492,1746125476759,-7855.19516512,0.00035606,2]
[359565493,1746125476794,-3906.69063201,0.00035606,2]
[359565494,1746125477445,-800.0,0.00035606,2]
[359565495,1746125477460,-22643.43247647,0.00035606,2]
[359565496,1746125477470,-556.02991113,0.00035616,11]
[359565497,1746125477480,-486.39,0.00035616,11]
[359565498,1746125477489,-450.0,0.00035616,11]
[359565499,1746125477498,-450.0,0.00035616,8]
[359565500,1746125477508,-621.91,0.00035616,11]
[359565501,1746125477517,-450.0,0.0003589,11]
[359565502,1746125477526,-486.39,0.0003589,11]
[359565503,1746125477535,-450.0,0.0003589,11]
[359565504,1746125477545,-570.56216768,0.0003589,8]
[359565505,1746125477554,-621.91,0.0003589,11]
[359565506,1746125477563,-153.26026647,0.00036064,7]
[359565507,1746125477572,-913.2,0.00036164,11]
[359565508,1746125477581,-450.0,0.00036164,11]
[359565509,1746125477590,-486.39,0.00036164,11]
[359565510,1746125477599,-450.0,0.00036164,11]
[359565511,1746125477609,-621.91,0.00036164,11]
[359565512,1746125477618,-25855.14088995,0.00036438,7]
[359565513,1746125477700,-288.37982039,0.00036438,7]
[359565514,1746125479097,-2000.0,0.00035506,2]
[359565518,1746125981239,1996.0,0.000328,60]
[359565615,1746126162395,160.0,0.000299,31]
[359565616,1746126181686,2000.0,0.0001,2]
[359565617,1746126181706,2000.0,0.0001,2]
[359565618,1746126181726,54.31302937,0.0001,2]
[359565633,1746126632386,-568.114537,0.00023325,2]
[359565634,1746126632396,-153.0,0.00023443,2]
[359565635,1746126632406,-4003.0,0.00023443,2]
[359565636,1746126632415,-182.16883491,0.00023443,2]
[359565637,1746126632427,-695.83116509,0.00023443,2]
[359565638,1746126632437,-6750.0,0.00023443,2]
[359565639,1746126632446,-345.90850235,0.00023844,2]
[359565640,1746126632456,-250.0,0.00023944,2]
[359565641,1746126632466,-200.0,0.00023944,2]